[Event "4NCL 2022-2023"]
[Site "Daventry"]
[Date "2023.02.12"]
[Round "6.47"]
[White "Hill, Alistair"]
[Black "Toma, Katarzyna"]
[Result "0-1"]
[ECO "B51"]
[WhiteElo "2173"]
[BlackElo "2231"]
[Annotator "TA"]
[PlyCount "76"]
[EventDate "2022.10.20"]
[EventType "team-tourn"]
[EventCountry "ENG"]
[SourceTitle "playchess.com"]
[Source "ChessBase"]
[SourceQuality "1"]
[TimeControl "40/6000+30:2400+30"]

{[%evp 13,76,38,29,32,73,34,27,33,49,39,33,28,56,16,18,18,20,0,20,-12,0,-37,-29,-42,-36,-55,-54,-60,-37,-31,0,0,20,-45,-29,-41,0,0,0,-34,-48,-30,21,15,18,0,10,-60,-56,-325,-322,-351,-313,-341,-341,-317,-299,-306,-310,-284,-129,-97,-30,-726,-710]} 1. e4 {[%emt 0:01:46]} c5 {[%emt 0:00:43]} 2. Nf3 {[%emt 0:00:06]} Nc6 {[%emt 0:00:54]} 3. Bb5 {[%emt 0:00:51]} d6 {[%emt 0:01:15]} 4. O-O {[%emt 0:01:13]} Bd7 {[%emt 0:01:01]} 5. Re1 {[%emt 0:00:24]} e5 {[%emt 0:00:43]} 6. c3 {[%emt 0:00:59][%cal Bc2c3,Bc3c4][%mdl 32]} a6 {[%emt 0:00:43]} 7. Bxc6 {[%emt 0:10:58]} Bxc6 {[%emt 0:00:06]} 8. d4 {[%emt 0:00:04] B51: Sicilian: Moscow Variation (3 Bb5+) without 3...Bd7.} Qc7 {[%emt 0:04:52]} 9. dxe5 {[%emt 0:02:19] has lost popularity (9.Nbd2).} dxe5 {[%emt 0:00:06]} 10. c4 {[%emt 0:00:04] White has an edge.} Rd8 {[%emt 0:04:29]} 11. Qc2 {[%emt 0:00:37]} Bd6 {[%emt 0:05:21]} 12. Nc3 {[%emt 0:00:07]} Ne7 {[%emt 0:00:36] [#]} 13. Bg5 $146 {[%emt 0:14:06]} (13. Nd5 $5 {[%cal Rd5c7]} Qb8 14. Be3 $14) ({Predecessor:} 13. Nd2 O-O 14. Nf1 f5 15. Ne3 f4 16. Ned5 Qd7 17. Nxe7+ Qxe7 18. f3 g5 19. Nd5 {0-1 Khouseinov,R-Irzhanov,R (2430) Olympiad-31 Moscow 1994 (5.4)}) 13... f6 {[%emt 0:02:25]} 14. Be3 {[%emt 0:00:04]} O-O {[%emt 0:00:30]} 15. Rac1 {[%emt 0:01:51]} b6 {[%emt 0:11:07]} 16. h4 {[%emt 0:13:55]} Qb7 {[%emt 0:06:17]} 17. Rcd1 {[%emt 0:05:27]} Be8 {[%emt 0:02:58]} 18. Nh2 {[%emt 0:07:44][%cal Bf3h2,Bh2f1,Bf1g3,Bg3e4][%mdl 32]} Nc6 {[%emt 0:04:27]} 19. Nd5 {[%emt 0:00:44]} Nd4 {[%emt 0:04:57]} 20. Qd3 {[%emt 0:01:57]} Rb8 {[%emt 0:11:04]} (20... b5 {seems wilder.} 21. b4 bxc4 22. Qxc4 Bb5) 21. Nf1 {[%emt 0:03:14]} f5 {[%emt 0:09:51]} 22. exf5 {[%emt 0:17:53]} Nxf5 {[%emt 0:00:16]} 23. Bg5 {[%emt 0:00:05]} ({White should try} 23. Ng3 $11 Nxg3 24. fxg3) 23... Nd4 $15 {[%emt 0:12:36]} 24. Ng3 {[%emt 0:06:59]} Bg6 {[%emt 0:02:18]} (24... Qf7 25. Ne4 $16) 25. Ne4 {[%emt 0:00:26][%cal Oe4d6] A dynamic duo of knights.} Qf7 $36 {[%emt 0:01:41][%mdl 2048] Black has good play.} 26. Qg3 {[%emt 0:02:40]} Bxe4 {[%emt 0:03:38]} 27. Rxe4 {[%emt 0:00:35]} Nf5 {[%emt 0:02:32]} (27... b5 $142 28. b3 bxc4 29. bxc4 Rb2) 28. Qg4 {[%emt 0:03:19][%cal Od5f6]} Kh8 {[%emt 0:01:47]} 29. b3 {[%emt 0:03:17]} b5 {[%emt 0:00:51]} 30. Ne3 {[%emt 0:02:49]} ({Better is} 30. f4 $11 Rbe8 31. Rde1) 30... Nd4 {[%emt 0:00:58] Threatens to win with ...h5.} 31. Rf1 $2 {[%emt 0:00:19][%mdl 8192]} (31. h5 $1 $15) 31... h6 $19 {[%emt 0:04:29]} 32. f4 {[%emt 0:00:04]} exf4 {[%emt 0:02:35]} ({Stronger than} 32... hxg5 33. fxe5 Qg6 34. exd6 $11) 33. Bxf4 {[%emt 0:00:06]} Bxf4 {[%emt 0:00:20]} 34. Rfxf4 {[%emt 0:01:49] [#]} Qxf4 {[%emt 0:00:22][%mdl 512]} 35. Rxf4 {[%emt 0:00:03]} Rxf4 {[%emt 0:00:06]} 36. Qh5 {[%emt 0:00:38]} bxc4 {[%emt 0:00:46]} (36... Rbf8 $1 $19 {and Black stays clearly on top. aiming for ...Re4.} 37. Ng4 (37. cxb5 $2 axb5 38. g3 Rf2 $19) 37... R8f5 38. Qe8+ Kh7) 37. Nxc4 $17 {[%emt 0:00:19] [#]} Nf5 {[%emt 0:03:02] Black is more active.} (37... Rf5 $1 $17 {[%cal Rf5h5]} 38. Qg4 Rbf8) 38. Ne5 $2 {[%emt 0:00:45][%mdl 8192] [#]} (38. Qe2 $11 Nxh4 39. Ne5) 38... Rf1+ $3 {[%emt 0:00:35][%mdl 576] Decoy. A superb game by Toma.   Weighted Error Value: White=0.40/Black=0.24 (precise)} 0-1

[Event "4NCL 2022-2023"]
[Site "Daventry"]
[Date "2023.02.12"]
[Round "6.48"]
[White "Haydon, David L"]
[Black "Sivanandan, Bodhana"]
[Result "1-0"]
[ECO "E14"]
[WhiteElo "2268"]
[BlackElo "1725"]
[Annotator "TA"]
[PlyCount "147"]
[EventDate "2022.10.20"]
[EventType "team-tourn"]
[EventCountry "ENG"]
[SourceTitle "playchess.com"]
[Source "ChessBase"]
[SourceQuality "1"]
[TimeControl "40/6000+30:2400+30"]

{[%evp 18,146,14,4,26,0,0,-16,-15,-54,-10,0,-12,-18,-16,-11,0,0,23,25,32,0,0,0,0,0,18,0,0,0,10,0,0,0,0,0,9,8,32,32,31,30,35,0,0,0,0,0,0,0,0,0,0,0,0,0,0,0,0,0,0,0,36,37,86,107,77,90,175,150,173,176,151,151,227,227,218,209,308,302,362,353,343,335,945,1014,802,853,29957,29950,5234,5077,29980,29981,29981,29979,29979,29980,29982,29983,29983,29984,29983,29984,29984,29985,29985,29986,29986,29987,29988,29989,29989,29990,29990,29991,29992,29992,29993,29994,29994,29995,29995,29996,29996,29997,29997,29997,29998,29999,29999]} 1. Nf3 {[%emt 0:02:37]} Nf6 {[%emt 0:00:32]} 2. e3 {[%emt 0:01:17]} e6 {[%emt 0:01:58]} 3. b3 {[%emt 0:00:44]} Be7 {[%emt 0:01:27]} 4. Bb2 {[%emt 0:00:24]} O-O {[%emt 0:01:58]} 5. Be2 {[%emt 0:00:57]} b6 {[%emt 0:02:04]} 6. O-O {[%emt 0:01:24]} Bb7 {[%emt 0:01:13]} 7. c4 {[%emt 0:02:19]} d5 {[%emt 0:02:49]} 8. Nc3 {[%emt 0:01:43]} c5 {[%emt 0:02:36]} 9. d4 {[%emt 0:02:24]} Nbd7 {[%emt 0:02:51][%cal Bb8d7,Bd7c5,Bc5e4][%mdl 32] 9...cxd4 is the fancy move.} 10. Rc1 {[%emt 0:05:50]} Rc8 {[%emt 0:02:20] E14: Queen's Indian: Classical Variation (4 e3).} 11. dxc5 {[%emt 0:03:31]} Nxc5 {[%emt 0:00:55] [#]} 12. Qc2 $146 {[%emt 0:02:26]} ({Predecessor:} 12. h3 Nfe4 13. cxd5 Nxc3 14. Bxc3 Bxd5 15. Rc2 Bf6 16. Bd4 Ne4 17. Ba6 Rxc2 18. Qxc2 Bxd4 19. Nxd4 {1-0 Crul,O (1834)-Basso,M Curitiba Sul Region-ch 2017 (3)}) 12... dxc4 {[%emt 0:02:14] The position is equal.} 13. bxc4 {[%emt 0:01:50]} Nce4 {[%emt 0:01:03]} 14. Rfd1 {[%emt 0:07:58]} Qe8 {[%emt 0:04:36][%cal Oe4f2]} 15. Nd4 {[%emt 0:03:27]} Nxc3 {[%emt 0:05:46]} 16. Qxc3 {[%emt 0:00:46]} Qa4 {[%emt 0:06:11]} 17. Qb3 {[%emt 0:07:47]} Bc6 {[%emt 0:05:31]} 18. Nxc6 {[%emt 0:05:41]} Qxc6 {[%emt 0:01:41]} 19. Bf3 {[%emt 0:05:06] This pair of bishops is nice.} (19. Qb5 {simplifies} Qxb5 20. cxb5 Rxc1 21. Rxc1 Rd8 22. g3) 19... Qc7 {[%emt 0:04:45]} 20. Qb5 {[%emt 0:05:15]} Rfd8 {[%emt 0:01:42]} 21. Rd4 {[%emt 0:04:39]} Rxd4 {[%emt 0:02:54]} 22. Bxd4 {[%emt 0:02:39]} Nd7 {[%emt 0:03:45]} 23. g3 {[%emt 0:03:12]} Bf6 {[%emt 0:01:52] Black is weak on the light squares} 24. Rd1 {[%emt 0:04:15]} Bxd4 {[%emt 0:01:32]} 25. exd4 {[%emt 0:04:12]} g6 {[%emt 0:02:01]} 26. Kg2 {[%emt 0:03:04]} Nf6 {[%emt 0:03:51]} 27. Rc1 {[%emt 0:03:52]} Qd7 {[%emt 0:03:38] ...Qxb5 would be deadly.} (27... Qd8 $5 {[%cal Rd8d4]}) 28. Qb2 {[%emt 0:00:42]} Kg7 {[%emt 0:02:11]} 29. c5 {[%emt 0:00:22]} (29. h4 {simplifies} h5 30. c5 Nd5 31. a3) 29... Nd5 {[%emt 0:02:40]} 30. cxb6 {[%emt 0:01:08] Black must now prevent Rxc8.} Rxc1 {[%emt 0:02:56]} (30... Rb8 {simplifies} 31. Qe2 Rxb6 32. Rc5 Rd6) 31. b7 {[%emt 0:01:17] Repels Rc8} Rc8 {[%emt 0:00:14]} 32. bxc8=Q {[%emt 0:23:42]} Qxc8 $11 {[%emt 0:00:17][%mdl 4096] Endgame KQB-KQN} 33. Qe2 {[%emt 0:00:00]} Qc7 {[%emt 0:03:23]} 34. Bxd5 {[%emt 0:00:00]} exd5 {[%emt 0:00:15] KQ-KQ} 35. h4 {[%emt 0:00:00]} Qd7 {[%emt 0:02:18]} 36. Qe5+ {[%emt 0:00:00]} f6 {[%emt 0:00:10]} 37. Qb8 {[%emt 0:00:00]} Qe7 {[%emt 0:00:32]} 38. Kf1 {[%emt 0:00:00]} h6 {[%emt 0:02:38]} 39. a4 {[%emt 0:00:00]} Qd7 {[%emt 0:01:37]} 40. a5 {[%emt 0:00:00]} a6 {[%emt 0:03:40]} (40... h5 $14) 41. Qb6 $16 {[%emt 0:30:13] White is more active. White leaves nothing to chance now.} Qc8 {[%emt 0:40:59]} 42. Kg2 {[%emt 0:01:17]} Kf7 {[%emt 0:04:57]} (42... h5 $16 {was called for.}) 43. Qa7+ $1 $18 {[%emt 0:01:19]} Kg8 {[%emt 0:02:13] [#]} 44. Qe7 {[%emt 0:00:29] Dodges Qe6} Qc6 {[%emt 0:02:08] [#]} 45. Qd8+ $1 {[%emt 0:00:46]} Kf7 {[%emt 0:00:28]} (45... Kg7 $16) 46. Qh8 {[%emt 0:00:46]} Qc2 {[%emt 0:03:54]} 47. Qh7+ {[%emt 0:03:05]} (47. Qxh6 Qe4+ 48. Kf1 Qb1+ 49. Ke2 Qb5+ 50. Ke3 Qb3+ 51. Ke2 Qb5+ 52. Kf3 Qxa5 $11) 47... Ke6 {[%emt 0:01:24]} (47... Kf8 $142 48. Qxh6+ Kf7) 48. Qg8+ {[%emt 0:01:18]} ({Not} 48. Qxh6 Qe4+ 49. Kf1 Qb1+ 50. Ke2 Qb5+ 51. Kf3 Qxa5 $16) 48... Kd6 {[%emt 0:00:36]} 49. Qd8+ {[%emt 0:00:13]} Ke6 {[%emt 0:01:03]} 50. Qb6+ {[%emt 0:00:04]} Kf5 $2 {[%emt 0:00:14]} (50... Kd7 51. Qb7+ (51. Qxf6 Qe4+ 52. Kh2 Qc2 $16) 51... Ke8 52. Qxd5 Ke7 53. Qb7+ Kd8 54. Qxa6 Qe4+ 55. Kf1 Qxd4) 51. Qxa6 {[%emt 0:01:04]} Qe4+ {[%emt 0:00:51]} 52. Kh2 {[%emt 0:02:39] Qc8+ would kill now.} Qxd4 {[%emt 0:02:28]} 53. Qb6 {[%emt 0:00:41]} Qa4 {[%emt 0:01:06]} 54. a6 {[%emt 0:00:57]} d4 {[%emt 0:00:35]} 55. a7 {[%emt 0:01:39] White mates.} d3 {[%emt 0:00:09]} 56. Qc5+ {[%emt 0:00:15]} Ke4 {[%emt 0:01:17]} 57. Qe3+ {[%emt 0:00:05]} Kf5 {[%emt 0:00:58]} 58. Qf3+ {[%emt 0:00:12]} ({Inferior is} 58. Qxh6 Qxa7 59. Qf4+ Ke6 $11) 58... Ke5 {[%emt 0:00:43]} 59. a8=Q {[%emt 0:00:20]} Qxa8 {[%emt 0:00:19]} 60. Qxa8 {[%emt 0:00:05]} Kd4 {[%emt 0:00:47]} 61. Qa1+ {[%emt 0:00:33]} Kc4 {[%emt 0:00:12]} 62. Qxf6 {[%emt 0:00:45]} d2 {[%emt 0:00:08]} 63. Qf3 {[%emt 0:00:15]} Kd4 {[%emt 0:00:30]} 64. Qe3+ {[%emt 0:01:33]} Kc4 {[%emt 0:00:24]} 65. Qxd2 {[%emt 0:00:06]} h5 {[%emt 0:00:29]} 66. Qg5 {[%emt 0:00:10]} Kb3 {[%emt 0:00:12]} 67. Qxg6 {[%emt 0:00:05]} Ka2 {[%emt 0:00:20]} 68. Qb6 {[%emt 0:00:15]} Ka3 {[%emt 0:00:09]} 69. Kg2 {[%emt 0:00:06]} Ka2 {[%emt 0:00:17]} 70. Kf1 {[%emt 0:00:05]} Ka3 {[%emt 0:00:18]} 71. Ke2 {[%emt 0:00:52]} Ka4 {[%emt 0:00:18]} 72. Kd3 {[%emt 0:00:07]} Ka3 {[%emt 0:00:09]} 73. Kc3 {[%emt 0:00:11][%csl Gc3][%cal Rb6b3]} Ka2 {[%emt 0:00:05]} 74. Qb2# {[%emt 0:00:12] Weighted Error Value: White=0.04 (flawless) /Black=0.35} 1-0

[Event "4NCL 2022-2023"]
[Site "Daventry"]
[Date "2023.03.18"]
[Round "7.1"]
[White "Speelman, Jon S"]
[Black "Roberson, Peter T"]
[Result "0-1"]
[ECO "A07"]
[WhiteElo "2500"]
[BlackElo "2426"]
[Annotator "TA"]
[PlyCount "52"]
[EventDate "2022.10.20"]
[EventType "team-tourn"]
[EventCountry "ENG"]
[SourceTitle "playchess.com"]
[Source "ChessBase"]
[SourceQuality "1"]
[TimeControl "40/6000+30:2400+30"]

{[%evp 23,52,0,0,0,0,0,0,4,0,0,0,0,0,0,4,0,68,0,83,68,106,0,0,-279,-289,-238,-262,-434,-418,-410,-108]} 1. Nf3 {[%emt 0:00:15]} d5 {[%emt 0:00:11]} 2. g3 {[%emt 0:00:11]} g6 {[%emt 0:00:30]} 3. Bg2 {[%emt 0:01:47]} Bg7 {[%emt 0:00:09]} 4. O-O {[%emt 0:00:06]} e5 {[%emt 0:00:40]} 5. d3 {[%emt 0:00:49]} Nc6 {[%emt 0:01:16]} 6. Nbd2 {[%emt 0:01:26]} Nge7 {[%emt 0:00:38]} 7. e4 {[%emt 0:04:42]} O-O {[%emt 0:00:54]} 8. c3 {[%emt 0:01:15]} a5 {[%emt 0:01:45]} 9. a4 {[%emt 0:00:50]} h6 {[%emt 0:05:03]} 10. exd5 {[%emt 0:14:22]} Nxd5 {[%emt 0:01:05]} 11. Re1 {[%emt 0:00:17]} Re8 {[%emt 0:05:32]} 12. Nc4 {[%emt 0:04:56]} Bf5 {[%emt 0:26:04]} 13. h3 {[%emt 0:06:22] A07: Réti Opening: New York and Capablanca Systems.} Nb6 {[%emt 0:08:44]} 14. Nxb6 {[%emt 0:02:49]} cxb6 {[%emt 0:00:06]} 15. Bf1 {[%emt 0:03:15] The position is equal.} Qd7 {[%emt 0:09:39] [#]} 16. Be3 $146 {[%emt 0:00:06]} ({Predecessor:} 16. Kh2 Be6 17. Be3 Qc7 18. d4 Rad8 19. Qc1 exd4 20. Bxh6 d3 21. Bf4 Qc8 22. Qd2 {0-1 Gaboyan,S (2225)-Mikhalevski,V (2517) Braila GP RO Stage 5 rapid 2022 (4)}) 16... Bxh3 {[%emt 0:01:02]} 17. Bxh3 {[%emt 0:00:13]} Qxh3 {[%emt 0:00:05]} 18. Bxb6 {[%emt 0:00:19]} Re6 {[%emt 0:07:34]} 19. Qb3 {[%emt 0:05:33]} Ne7 {[%emt 0:19:33]} (19... Rae8 $11) 20. Bc5 {[%emt 0:04:59]} (20. Bc7 $14) 20... Nf5 {[%emt 0:01:11]} (20... Nc6 $11) 21. Qxb7 $16 {[%emt 0:01:01]} Rae8 {[%emt 0:01:57][%cal Oe5e4] [#] ...e4! would be deadly.} 22. Nh2 {[%emt 0:02:30]} (22. Nd2 $16) 22... e4 $1 $40 {[%emt 0:02:38][%mdl 128] Black has some attack.} 23. Rxe4 {[%emt 0:01:31][%mdl 8192]} (23. dxe4 Nxg3 24. fxg3 Qxg3+ 25. Kh1 Rb8 $19) (23. Nf1 $1 $11 {and White stays safe.} exd3 24. Rxe6 Rxe6 25. Rd1) 23... Rxe4 $19 {[%emt 0:01:44]} 24. dxe4 {[%emt 0:00:05]} Nxg3 {[%emt 0:00:29][%mdl 64] [#] Demolition} 25. fxg3 {[%emt 0:00:14]} (25. Qb5 Re5 26. fxg3 Qxg3+ 27. Kh1) 25... Qxg3+ {[%emt 0:02:42]} 26. Kh1 {[%emt 0:00:06] Threatens to win with Rf1.} Rb8 $2 {[%emt 0:01:07] Weighted Error Value: White=0.61/Black=0.24 (precise)} (26... Be5 $19 {[%csl Ge5][%cal Rg3h2] has better winning chances.} 27. Bg1 Rb8) 0-1

[Event "4NCL 2022-2023"]
[Site "Daventry"]
[Date "2023.03.18"]
[Round "7.2"]
[White "Grieve, Harry"]
[Black "McDonald, Neil"]
[Result "1/2-1/2"]
[ECO "B01"]
[WhiteElo "2442"]
[BlackElo "2408"]
[Annotator "TA"]
[PlyCount "63"]
[EventDate "2022.10.20"]
[EventType "team-tourn"]
[EventCountry "ENG"]
[SourceTitle "playchess.com"]
[Source "ChessBase"]
[SourceQuality "1"]
[TimeControl "40/6000+30:2400+30"]

{[%evp 9,63,42,64,44,43,28,37,38,20,25,41,27,22,0,67,33,35,27,30,32,52,44,45,60,92,85,84,93,84,87,127,128,123,46,47,52,39,47,56,54,87,22,37,50,41,47,57,0,0,-11,-8,-8,-12,-13,-13,-14]} 1. e4 {[%emt 0:00:02]} d5 {[%emt 0:00:26]} 2. exd5 {[%emt 0:00:04]} Qxd5 {[%emt 0:00:05]} 3. Nc3 {[%emt 0:00:04]} Qd8 {[%emt 0:00:11]} 4. d4 {[%emt 0:00:05]} Nf6 {[%emt 0:00:21]} 5. Nf3 {[%emt 0:00:14]} g6 {[%emt 0:00:13]} 6. h3 {[%emt 0:03:04] B01: Scandinavian Defence.} Bg7 {[%emt 0:00:21]} 7. Bc4 {[%emt 0:00:05]} O-O {[%emt 0:00:42]} 8. O-O {[%emt 0:00:19] White is slightly better.} a6 {[%emt 0:00:29]} 9. a4 {[%emt 0:01:18]} b6 {[%emt 0:01:06]} 10. Bf4 {[%emt 0:06:11]} Bb7 {[%emt 0:01:46] [#]} 11. d5 $146 {[%emt 0:00:05]} ({Predecessor:} 11. Ne5 e6 12. Qd2 Nc6 13. Rad1 Ne7 14. Be2 Ned5 15. Bh6 Nxc3 16. bxc3 Ne4 17. Qe3 Bxh6 18. Qxh6 Nxc3 {½-½ Fataliyeva,U (2301)-Stroganova,K (1787) Djerba Online (Women) blitz 2020 (3)}) 11... Ne8 {[%emt 0:02:14]} (11... c6 $11) 12. Ne5 {[%emt 0:10:37]} Nd6 {[%emt 0:02:08]} 13. Bb3 {[%emt 0:00:06]} Nd7 {[%emt 0:02:09]} 14. Re1 {[%emt 0:07:45]} Re8 {[%emt 0:06:34]} 15. Qg4 {[%emt 0:08:40]} Nxe5 {[%emt 0:07:00]} 16. Bxe5 {[%emt 0:00:02]} Qc8 {[%emt 0:02:46]} 17. Qd4 {[%emt 0:05:58]} Nf5 {[%emt 0:05:41]} 18. Qf4 {[%emt 0:00:27]} Bh6 {[%emt 0:01:53]} 19. Qf3 {[%emt 0:06:38] White has more active pieces. The black rooks are badly placed.} Qd7 {[%emt 0:11:37]} 20. a5 {[%emt 0:04:48]} Bg7 {[%emt 0:05:36]} 21. axb6 {[%emt 0:07:48]} (21. Bxg7 $16 {And now Be5 would win.} Kxg7 22. Ne4) 21... cxb6 $14 {[%emt 0:02:17]} 22. Bxg7 {[%emt 0:02:45]} Kxg7 {[%emt 0:00:32]} 23. Ne4 {[%emt 0:00:38]} Rac8 {[%emt 0:03:40]} (23... Bxd5 $2 24. Rad1 Bxe4 25. Qc3+ $18 (25. Rxe4 Qc7 $11) (25. Rxe4 Qc7 $11)) 24. c4 {[%emt 0:01:57]} f6 {[%emt 0:16:12]} 25. Red1 {[%emt 0:04:29] Against Nd4} (25. Qc3 $16) 25... Nd6 {[%emt 0:01:40]} 26. Rac1 {[%emt 0:05:21]} Nxe4 {[%emt 0:01:26]} 27. Qxe4 {[%emt 0:00:01][%cal Oc4c5]} Qd6 {[%emt 0:02:18]} 28. Ba4 {[%emt 0:09:05]} ({White should play} 28. Qe3 $14) 28... b5 $1 $11 {[%emt 0:06:20] The position is equal.} 29. cxb5 {[%emt 0:00:37]} Rxc1 {[%emt 0:00:25]} 30. Rxc1 {[%emt 0:00:01] [#] bxa6 would be deadly.} Bxd5 {[%emt 0:03:46]} (30... Qxd5 $2 31. Qxd5 Bxd5 32. bxa6 $18) 31. Qd4 {[%emt 0:05:41] bxa6 is the strong threat.} axb5 {[%emt 0:00:54]} 32. Bxb5 {[%emt 0:00:28] Weighted Error Value: White=0.15 (very precise) /Black=0.12 (very precise)} 1/2-1/2

[Event "4NCL 2022-2023"]
[Site "Daventry"]
[Date "2023.03.18"]
[Round "7.3"]
[White "Greet, Andrew N"]
[Black "Ghasi, Ameet K"]
[Result "0-1"]
[ECO "B12"]
[WhiteElo "2408"]
[BlackElo "2471"]
[Annotator "TA"]
[PlyCount "92"]
[EventDate "2022.10.20"]
[EventType "team-tourn"]
[EventCountry "ENG"]
[SourceTitle "playchess.com"]
[Source "ChessBase"]
[SourceQuality "1"]
[TimeControl "40/6000+30:2400+30"]

{[%evp 11,92,8,8,0,-5,-7,4,0,0,-15,-10,-1,-12,-7,-29,-19,-19,-14,0,0,0,0,0,0,0,0,12,2,12,5,5,11,0,0,0,0,0,-15,-13,-20,-14,-90,-85,-108,-102,-169,-179,-258,-235,-250,-243,-250,-235,-226,-247,-235,-249,-234,-226,-454,-467,-415,-251,-607,-557,-602,-389,-382,-376,-354,-346,-1389,-1323,-1350,-1232,-1114,-923,-1590,-1445,-1674,-1524,-1643,-1460]} 1. e4 {[%emt 0:00:58]} c6 {[%emt 0:00:59]} 2. d4 {[%emt 0:00:10]} d5 {[%emt 0:00:04]} 3. e5 {[%emt 0:00:10]} Bf5 {[%emt 0:00:05]} 4. h4 {[%emt 0:00:11]} h5 {[%emt 0:00:05]} 5. Bd3 {[%emt 0:00:10]} Bxd3 {[%emt 0:00:06]} 6. Qxd3 {[%emt 0:00:04]} e6 {[%emt 0:00:06]} 7. Bg5 {[%emt 0:00:10] B12: Caro-Kann: Advance Variation.} Qb6 {[%emt 0:00:17]} 8. Nd2 {[%emt 0:00:12]} c5 {[%emt 0:00:04]} 9. c4 {[%emt 0:00:29] The position is equal.} Qxb2 {[%emt 0:00:21]} 10. Rd1 {[%emt 0:01:54]} Nc6 {[%emt 0:05:21][%cal Bb8c6,Bc6b4,Bb4c2][%mdl 32]} 11. Ne2 {[%emt 0:05:59]} Nb4 {[%emt 0:02:09]} 12. Qf3 {[%emt 0:05:30]} Nc2+ $1 {[%emt 0:00:04]} (12... Qxa2 13. O-O $14) 13. Kf1 {[%emt 0:00:05]} Nxd4 {[%emt 0:00:15]} (13... Qxa2 14. dxc5 Rc8 15. Qc3 $14) 14. Nxd4 {[%emt 0:00:13]} Qxd4 {[%emt 0:00:25]} (14... cxd4 {simplifies} 15. cxd5 Qb5+ 16. Kg1 Qxd5 17. Qxd5 exd5 18. Nb3 Rc8) 15. Qb3 {[%emt 0:02:43][%cal Rb3b5]} Be7 {[%emt 0:00:25]} 16. cxd5 {[%emt 0:19:31]} (16. Qxb7 Rd8 17. cxd5 Qxd5 18. Qxd5 exd5 $17) 16... exd5 {[%emt 0:01:15]} (16... Bxg5 17. Nc4 Qf4 18. Nd6+ Kf8 19. Qxb7 $18) 17. Qxb7 {[%emt 0:03:07]} Rd8 {[%emt 0:00:22] [#]} 18. Rh3 $146 {[%emt 0:01:17]} ({Predecessor:} 18. Re1 Qb4 19. Qxa7 Rh6 20. Rb1 Qd4 21. Kg1 Re6 22. Nf3 Qc4 23. Rb8 Bxg5 24. Nxg5 {½-½ Ragger,M (2647)-Bluebaum,M (2673) Olympiad-44 Chennai 2022 (3.1)}) 18... Rh6 {[%emt 0:30:22][%cal Od4a4]} 19. Bxh6 {[%emt 0:09:56]} (19. Qxa7 Rc6 $15) 19... Nxh6 {[%emt 0:00:14]} 20. Qb5+ {[%emt 0:00:32]} (20. Qxa7 Ng4 21. Rf3 Nh2+ 22. Ke1 Nxf3+ 23. Nxf3 Qc4 $17) 20... Kf8 {[%emt 0:01:17] ...c4 would be deadly.} 21. Qe2 {[%emt 0:00:29]} Ng4 $40 {[%emt 0:05:58][%mdl 128] Black attacks.} 22. Nf3 {[%emt 0:01:29]} Qf4 {[%emt 0:04:30]} 23. e6 {[%emt 0:05:26]} f6 {[%emt 0:03:36][%cal Bf7f6,Bf6f5][%mdl 32]} 24. Kg1 {[%emt 0:16:03]} d4 {[%emt 0:17:47][%mdl 1024] Black has compensation.} 25. Qd3 {[%emt 0:10:03] Prevents Qf5.} f5 $1 {[%emt 0:00:11]} 26. Re1 {[%emt 0:00:13]} (26. Qd2 $1 $11 Qd6 27. Ng5) 26... g6 $1 $17 {[%emt 0:00:27] White is on the road to losing.} 27. Rh1 {[%emt 0:04:25]} Qc7 {[%emt 0:09:30] Some like it hot. Black is more active.} 28. Nd2 {[%emt 0:01:13]} (28. Qc4 $17 {keeps fighting.}) 28... Qa5 $1 $19 {[%emt 0:01:03] And now ...c4 would win.} ({Not} 28... Qf4 29. Nf3 $17) 29. Re2 {[%emt 0:06:22]} (29. Rd1 $142) 29... Qxa2 {[%emt 0:09:04]} 30. g3 {[%emt 0:00:26] [#]} Qd5 {[%emt 0:03:06]} 31. Nc4 {[%emt 0:01:15] [#]} Rb8 $1 {[%emt 0:01:36] aiming for ...Rb4.} 32. f3 {[%emt 0:01:01]} Rb4 $1 {[%emt 0:01:16][%cal Bb8b4,Bb4c4,Bc4c3][%mdl 32]} 33. fxg4 {[%emt 0:04:17] Ne5 is the strong threat.} Rxc4 {[%emt 0:00:43]} ({Inferior is} 33... Qxc4 34. Qxc4 Rxc4 35. Kf2 $17) 34. Kh2 {[%emt 0:01:05] Strongly threatening gxf5.} hxg4 {[%emt 0:04:47] Hoping for ...Rc3.} (34... fxg4 $2 35. Rf1+ Ke8 36. Qb3 $18) 35. Rf1 $2 {[%emt 0:09:29]} (35. Ra1 {was worth a try.} Rc3 36. Qd2) 35... Rc3 {[%emt 0:03:08]} 36. Qa6 {[%emt 0:00:09]} Qd6 {[%emt 0:04:21]} 37. Qc8+ {[%emt 0:00:25]} (37. Qxd6 Bxd6 38. h5) 37... Kg7 {[%emt 0:00:23]} 38. Rg1 {[%emt 0:01:35]} Re3 {[%emt 0:02:14]} ({Weaker is} 38... Bxh4 39. Qd7+ Qxd7 40. exd7 $11) 39. Rxe3 {[%emt 0:00:13]} dxe3 {[%emt 0:00:02][%mdl 4096] Endgame KQR-KQB} 40. Qd7 {[%emt 0:00:49]} Kf6 {[%emt 0:00:36]} 41. Qxd6 $2 {[%emt 0:11:42]} (41. Rg2) 41... Bxd6 {[%emt 0:00:00] KR-KB. Black is clearly winning.} 42. Re1 {[%emt 0:00:55]} Kxe6 {[%emt 0:01:19]} 43. Rxe3+ {[%emt 0:00:07]} Kd5 {[%emt 0:00:04] Threatens to win with ...c4.} 44. Kg2 {[%emt 0:03:47]} c4 {[%emt 0:00:49]} 45. Kf1 {[%emt 0:00:15]} a5 {[%emt 0:00:57][%cal Ba7a5,Ba5a4][%mdl 32]} 46. Ke2 {[%emt 0:00:58]} a4 {[%emt 0:00:12] Excellently played by Ghasi!   Weighted Error Value: White=0.54/Black=0.23 (precise)} 0-1